bitfinex-derivatives/quotes_ETHF0:USTF0_20241004
["timestamp","ask_amount","ask_price","bid_price","bid_amount"]
[1728005717441,0.3974,2370.2,2369.5,3.2078]
[1728005717842,4.56,2370.5,2369.7,0.42201]
[1728005718043,0.42193,2370.2,2369.6,0.424]
[1728005718952,4.77604599,2370.2,2369.6,0.424]
[1728005719354,4.56,2370.2,2369.6,0.424]
[1728005719853,4.98193,2370.2,2369.6,0.424]
[1728005720046,0.42197,2370.0,2369.5,3.2078]
[1728005720248,4.56,2369.9,2369.0,0.398]
[1728005720442,0.42201,2369.7,2369.0,0.398]
[1728005720842,0.42203,2369.6,2369.0,0.398]
[1728005721047,3.2078,2369.8,2369.0,0.398]
[1728005721446,4.56,2370.2,2369.4,0.42206]
[1728005721651,3.2078,2369.8,2369.1,3.2078]
[1728005721953,0.42203,2369.6,2369.0,0.398]
[1728005722343,0.42207,2369.4,2369.0,0.398]
[1728005722553,0.42211,2369.2,2368.7,3.2078]
[1728005722755,0.3893,2369.4,2368.7,3.2078]
[1728005723256,0.81136,2369.4,2368.7,3.2078]
[1728005723553,0.3893,2369.4,2368.7,3.2078]
[1728005724052,0.42208,2369.3,2368.7,3.2078]
[1728005724262,0.3893,2369.4,2368.7,3.2078]
[1728005724554,0.42209,2369.3,2368.7,3.2078]
[1728005724746,0.3893,2369.4,2368.7,3.2078]
[1728005724945,3.2078,2369.8,2369.0,3.2078]
[1728005725158,3.6314,2370.1,2369.1,0.3989]
[1728005725350,4.05335,2370.1,2369.3,3.2078]
[1728005726051,3.2078,2370.1,2369.3,3.2078]
[1728005726248,3.2078,2370.1,2369.4,0.42205]
[1728005726753,8.18967,2370.5,2369.6,3.62983]
[1728005726954,7.7678,2370.5,2369.7,0.4261]
[1728005727254,7.7678,2370.5,2369.2,3.2078]
[1728005727456,0.42195,2370.1,2369.2,3.2078]
[1728005727651,7.7678,2370.5,2369.3,0.42208]
[1728005727652,0.42193,2370.2,2369.3,0.42208]
[1728005728156,7.7678,2370.5,2369.5,3.2078]
[1728005728456,0.20650824,2370.4,2369.5,3.2078]
[1728005728651,0.42193,2370.2,2369.5,3.2078]
[1728005729545,0.42194,2370.2,2369.5,3.2078]
[1728005729746,0.42196,2370.0,2369.2,3.2078]
[1728005729946,0.42195,2370.1,2369.2,3.62989]
[1728005730256,0.42198,2369.9,2369.2,3.2078]
[1728005731852,0.42197,2370.0,2369.2,3.2078]
[1728005732149,0.84205,2370.1,2369.2,3.62989]
[1728005732554,0.42197,2370.0,2369.2,3.2078]
[1728005732951,0.84205,2370.1,2369.2,3.62989]
[1728005733354,0.4201,2370.1,2369.2,3.2078]
[1728005733959,0.4201,2370.1,2369.3,0.42208]
[1728005734159,0.1336181,2370.5,2369.5,3.2078]
[1728005734160,7.9014181,2370.5,2369.5,3.2078]
[1728005734458,0.42196,2370.0,2369.5,3.2078]
[1728005734660,0.20682636,2370.1,2369.5,3.2078]
[1728005734863,0.42198,2369.9,2369.5,3.2078]
[1728005735060,0.42198,2369.9,2369.1,3.6067]
[1728005735363,0.62242636,2370.1,2369.1,3.6067]
[1728005735564,0.83755,2370.1,2369.2,0.42209]
[1728005736065,0.20901957,2370.0,2369.2,0.42209]
[1728005736257,7.7678,2370.2,2369.1,3.6067]
[1728005736560,0.4096,2370.9,2369.7,3.2078]
[1728005736561,0.21469957,2370.4,2369.7,3.2078]
[1728005736751,0.21469957,2370.4,2369.4,3.2078]
[1728005736957,0.42196,2370.0,2369.4,3.2078]
[1728005737156,4.56,2370.2,2369.4,3.62986]
[1728005737157,5.18955597,2370.2,2369.4,3.62986]
[1728005737462,5.18955597,2370.2,2369.4,3.2078]
[1728005737661,0.20762597,2370.2,2369.4,3.2078]
[1728005737863,0.42194,2370.1,2369.4,3.2078]
[1728005738359,0.42199,2369.9,2369.4,3.2078]
[1728005738561,4.05,2370.1,2369.4,3.2078]
[1728005738955,0.42196,2370.0,2369.4,3.2078]
[1728005739460,4.47195,2370.1,2369.4,3.2078]
[1728005739656,3.42201392,2370.2,2369.4,3.62986]
[1728005739852,3.2078,2370.5,2369.7,3.62981]
[1728005740059,3.2078,2370.5,2369.8,0.7789]
[1728005740459,0.42194,2370.1,2369.8,0.7789]
[1728005740654,4.05,2370.4,2369.8,0.3865]
[1728005740859,3.62968,2370.5,2369.8,0.3865]
[1728005741066,3.2078,2370.5,2369.8,0.3865]
[1728005741764,3.62968,2370.5,2369.8,0.3865]
[1728005741964,0.4219,2370.4,2369.8,0.3865]
[1728005742167,0.42192,2370.3,2369.8,0.3865]
[1728005742358,0.42194,2370.1,2369.8,0.3865]
[1728005742558,0.42194,2370.1,2369.7,3.2078]
[1728005742758,0.20805972,2370.1,2369.4,0.81]
[1728005742967,0.42197,2370.0,2369.4,0.4079]
[1728005743663,0.63600617,2370.1,2369.4,0.4079]
[1728005743862,4.26249,2370.5,2369.4,0.4079]
[1728005743863,3.2078,2370.5,2369.9,3.2078]
[1728005744063,3.2078,2370.5,2370.0,0.4073]
[1728005744370,0.42189,2370.4,2370.0,0.4073]
[1728005744660,3.2078,2370.5,2370.0,0.4073]
[1728005744862,4.88744,2370.7,2370.0,0.4073]
[1728005745058,3.62963,2370.8,2370.1,0.3941]
[1728005745256,3.2078,2370.8,2370.1,0.3941]
[1728005745667,0.42187,2370.5,2370.1,0.3941]
[1728005745861,4.05,2370.7,2370.0,0.4073]
[1728005746168,0.42191,2370.3,2370.0,0.4073]
[1728005746861,4.05,2370.7,2370.0,0.4073]
[1728005746862,0.42188,2370.5,2370.0,0.4073]
[1728005747563,0.82506,2370.6,2370.0,0.4073]
[1728005747759,3.2078,2370.8,2370.0,0.4073]
[1728005747760,3.62963,2370.8,2370.0,0.4073]
[1728005747958,0.42185,2370.6,2370.0,0.4073]
[1728005748658,0.42184,2370.7,2370.0,0.4073]
[1728005749064,3.2078,2370.8,2370.0,0.4073]
[1728005749065,0.42186,2370.6,2370.0,0.4073]
[1728005749281,0.42183,2370.7,2370.0,0.4073]
[1728005749461,3.2078,2370.8,2370.0,0.4073]
[1728005749765,0.42188,2370.5,2370.0,0.4073]
[1728005750068,4.05,2370.7,2370.0,0.4073]
[1728005750264,4.26236,2370.8,2369.9,3.2078]
[1728005750265,4.05,2370.4,2369.9,3.2078]
[1728005750466,0.42192,2370.2,2369.9,3.2078]
[1728005750764,4.26340484,2370.4,2369.7,0.3941]
[1728005750965,4.26340484,2370.4,2369.5,0.4117]
[1728005750966,0.42197,2370.0,2369.5,0.4117]
[1728005751156,0.42198,2369.9,2369.5,0.4117]
[1728005751569,4.05,2370.1,2369.5,0.4117]
[1728005751771,4.47195,2370.1,2369.5,0.4117]
[1728005752061,4.05,2370.1,2369.5,0.4117]
[1728005752267,0.42197,2370.0,2369.2,0.8247]
[1728005752468,4.05,2370.1,2369.4,3.2078]
[1728005752659,0.42193,2370.2,2369.4,3.62986]
[1728005752859,41.32032887,2370.3,2369.4,3.2078]
[1728005753166,0.42197,2370.0,2369.4,3.2078]
[1728005753761,3.62973,2370.2,2369.4,3.2078]
[1728005754169,3.2078,2370.2,2369.4,3.62985]
[1728005754472,3.62973,2370.2,2369.4,3.2078]
[1728005755567,0.42195,2370.1,2369.4,3.2078]
[1728005755766,3.2078,2370.2,2369.4,3.2078]
[1728005756067,0.42197,2370.0,2369.4,3.2078]
[1728005756272,0.42194,2370.1,2369.4,3.2078]
[1728005756569,0.3864,2370.3,2369.4,3.2078]
[1728005756759,0.42196,2370.0,2369.4,3.2078]
[1728005756959,0.422,2369.8,2369.4,3.2078]
[1728005757166,4.05,2370.2,2369.4,3.2078]
[1728005757374,0.42198,2369.9,2369.4,3.2078]
[1728005757669,4.05,2369.9,2369.2,0.8143]
[1728005758171,0.42204,2369.6,2369.2,0.8143]
[1728005759269,0.42202,2369.7,2369.2,0.8143]
[1728005759866,0.4103,2369.8,2369.2,0.8143]
[1728005760064,0.42202,2369.7,2369.2,0.8143]
[1728005760960,0.42203,2369.6,2369.2,0.8143]
[1728005761365,0.42203,2369.7,2369.2,0.8143]
[1728005761775,0.42202,2369.7,2369.2,0.8143]
[1728005762876,0.96602971,2369.8,2369.2,0.8143]
[1728005763073,0.42197,2370.0,2369.2,0.8143]
[1728005763568,0.42198,2369.9,2369.2,0.8143]
[1728005765268,0.42201,2369.8,2369.2,0.8143]
[1728005765576,4.472,2369.8,2369.2,0.8143]
[1728005766077,4.05,2369.8,2369.2,0.8143]
[1728005766669,0.42207,2369.4,2369.1,3.2078]
[1728005766876,0.7811,2369.7,2369.1,3.2078]
[1728005767064,0.42206,2369.4,2369.1,3.2078]
[1728005767666,0.4221,2369.2,2368.7,3.2078]
[1728005767868,0.20962408,2369.2,2368.7,3.2078]
[1728005768073,0.42207,2369.4,2368.7,3.2078]
[1728005768272,7.2578,2369.5,2368.7,3.2078]
[1728005768576,0.42207,2369.4,2368.7,3.2078]
[1728005768877,7.2578,2369.5,2368.7,3.2078]
[1728005769071,0.42207,2369.4,2368.7,3.2078]
[1728005770874,7.81383101,2369.5,2368.7,3.2078]
[1728005771074,7.39178101,2369.5,2368.7,3.2078]
[1728005771282,7.39178101,2369.5,2368.7,3.62999]
[1728005771878,3.2078,2369.5,2369.0,3.62993]
[1728005772081,3.2078,2369.5,2369.0,3.2078]
[1728005773080,3.2078,2369.5,2369.0,3.62993]
[1728005773779,3.2078,2369.5,2369.0,3.2078]
[1728005774381,4.05,2370.1,2369.4,3.2078]
[1728005774594,0.42196,2370.0,2369.5,0.8218]
[1728005774785,4.47195,2370.1,2369.5,0.8218]
[1728005775872,4.05,2370.1,2369.5,0.8218]
[1728005776079,0.42197,2370.0,2369.5,0.8218]
[1728005776683,5.46948944,2370.5,2369.7,3.2078]
[1728005776986,10.558,2370.7,2370.3,3.2078]
[1728005777177,10.558,2370.7,2370.4,0.8274]
[1728005777881,4.2184,2370.6,2369.9,3.2078]
[1728005778075,20.608,2370.7,2369.6,3.2078]
[1728005778076,4.05,2370.4,2369.6,3.2078]
[1728005778379,0.4219,2370.3,2369.6,3.2078]
[1728005778782,4.66395851,2370.4,2369.6,3.2078]
[1728005778988,3.6042,2370.5,2369.6,3.2078]
[1728005779174,3.2078,2370.5,2369.9,3.2078]
[1728005779675,3.2078,2370.5,2369.9,3.62976]
[1728005779984,10.558,2370.7,2370.0,0.42196]
[1728005780175,10.558,2370.7,2370.1,0.7996]
[1728005780380,7.2578,2371.5,2370.2,3.2078]
[1728005780683,0.48930807,2371.4,2370.5,3.2078]
[1728005780982,0.42172,2371.4,2370.5,3.2078]
[1728005781582,4.4649,2371.5,2370.5,3.2078]
[1728005781778,0.06759593,2371.4,2370.5,3.62967]
[1728005782290,0.48931593,2371.4,2370.5,3.2078]
[1728005782488,0.42172,2371.4,2370.5,3.2078]
[1728005782691,4.4649,2371.5,2370.5,3.2078]
[1728005782984,0.42182,2370.8,2370.5,3.2078]
[1728005783380,0.42184,2370.7,2370.5,3.2078]
[1728005783577,0.42184,2370.7,2370.1,0.7996]
[1728005783778,0.42184,2370.7,2369.7,3.2078]
[1728005783779,7.2578,2370.7,2369.7,3.2078]
[1728005783989,0.42192,2370.3,2369.7,3.2078]
[1728005784684,0.4104,2370.6,2369.7,3.62981]
[1728005785083,3.2078,2370.7,2370.0,3.62975]
[1728005785284,3.2078,2370.7,2370.1,0.4005]
[1728005785585,0.4104,2371.5,2370.3,3.2078]
[1728005785586,4.05,2371.2,2370.3,3.2078]
[1728005785886,4.05,2371.2,2370.2,0.3977]
[1728005785887,0.42185,2370.7,2370.2,0.3977]
[1728005786285,0.8087,2370.8,2370.2,0.3977]
[1728005786785,3.2078,2371.0,2370.2,0.3977]
[1728005787090,3.2078,2371.0,2370.3,3.2078]
[1728005787285,3.2078,2371.0,2370.3,3.6222]
[1728005787485,3.2078,2371.0,2370.6,3.2078]
[1728005787786,3.2078,2371.0,2370.7,0.4001]
[1728005787988,3.2078,2371.0,2370.8,0.4029]
[1728005788180,3.2078,2371.0,2370.7,0.4001]
[1728005788593,3.2078,2371.0,2370.8,0.01642094]
[1728005789487,8.6894,2370.9,2370.8,0.01642094]
[1728005789682,8.33521248,2370.9,2369.8,4.0149]
[1728005789883,0.42188,2370.5,2369.8,4.0149]
[1728005790078,3.2078,2370.7,2369.8,4.0149]
[1728005790079,0.20654215,2370.4,2369.8,4.0149]
[1728005790286,41.63506,2370.6,2369.8,4.0149]
[1728005790483,0.06762196,2370.5,2369.8,4.0149]
[1728005791188,0.06762196,2370.5,2369.8,4.43689]
[1728005791381,0.4132,2370.6,2369.8,4.43689]
[1728005791782,3.2078,2370.7,2369.9,0.42197]
[1728005791983,3.2078,2370.7,2369.9,0.84487]
[1728005792383,3.2078,2370.7,2369.9,0.4229]
[1728005792786,3.2078,2370.7,2369.9,0.84487]
[1728005792986,3.2078,2370.7,2370.1,3.2078]
[1728005793185,3.62955,2371.2,2370.2,0.42192]
[1728005793389,0.06760594,2371.1,2370.4,3.62967]
[1728005793685,3.2078,2371.2,2370.5,0.8378]
[1728005794095,3.2078,2371.2,2370.5,1.66296]
[1728005794303,3.62956,2371.2,2370.5,1.2411]
[1728005794593,3.62956,2371.2,2370.5,0.8378]
[1728005794594,0.42177,2371.1,2370.5,0.8378]
[1728005794788,0.42179,2371.0,2370.5,0.8378]
[1728005795394,7.2578,2371.2,2370.5,0.8378]
[1728005795395,0.4218,2370.9,2370.5,0.8378]
[1728005795602,0.42179,2371.0,2370.5,0.8378]
[1728005795895,0.42177,2371.1,2370.5,0.8378]
[1728005796094,7.2578,2371.2,2370.5,0.8378]
[1728005796288,0.06760276,2371.1,2370.5,0.8378]
[1728005796495,0.42179,2371.0,2370.5,0.8378]
[1728005796698,0.42178,2371.0,2370.5,0.8378]
[1728005796994,0.42181,2370.9,2370.4,3.2078]
[1728005797300,0.81511,2370.9,2370.4,3.2078]
[1728005797495,0.3933,2370.9,2370.4,3.2078]
[1728005798698,3.2078,2370.5,2370.1,0.8512]
[1728005798996,0.42183,2370.8,2370.1,0.8512]
[1728005799694,0.42181,2370.8,2370.1,0.8512]
[1728005800793,0.801,2370.9,2370.1,0.8512]
[1728005800995,0.42185,2370.6,2370.1,0.4283]
[1728005801199,0.4223,2370.7,2369.9,3.2078]
[1728005801398,0.42187,2370.5,2369.9,3.2078]
[1728005801998,0.630803,2370.4,2369.9,3.2078]
[1728005802305,4.05,2370.3,2369.6,3.2078]
[1728005802492,4.8807,2370.3,2369.4,0.3963]
[1728005802696,0.422,2369.8,2369.4,0.3963]
[1728005803003,0.42198,2369.9,2369.4,0.3963]
[1728005803201,0.4024,2370.0,2369.4,0.3963]
[1728005803507,0.82437,2370.0,2369.4,0.3963]
[1728005803696,0.4024,2370.0,2369.4,0.3963]
[1728005804210,0.82436,2370.0,2369.4,0.3963]
[1728005804393,0.4024,2370.0,2369.4,0.3963]
[1728005805808,0.4024,2370.0,2369.5,3.2078]
[1728005806197,3.2078,2370.1,2369.5,3.2078]
[1728005807304,0.4103,2370.3,2369.5,3.2078]
[1728005807505,0.4103,2370.3,2369.4,4.8404]
[1728005807506,0.4157,2370.5,2370.1,3.2078]
[1728005807697,1.25768,2370.5,2369.7,3.2078]
[1728005807898,0.21230319,2370.4,2369.7,3.2078]
[1728005808103,0.63420319,2370.4,2369.7,3.2078]
[1728005808403,0.42191,2370.3,2369.7,3.2078]
[1728005809002,0.42195,2370.1,2369.4,3.6041]
[1728005809702,0.8358,2370.5,2369.4,3.6041]
[1728005810002,0.42191,2370.3,2369.4,3.6041]
[1728005810210,0.62947891,2370.3,2369.4,3.6041]
[1728005810507,0.42193,2370.2,2369.4,3.6041]
[1728005810808,0.42192,2370.2,2369.4,3.6041]
[1728005811105,0.8358,2370.5,2369.4,3.6041]
[1728005811300,3.2078,2370.3,2369.4,3.6041]
[1728005811507,0.06763212,2370.2,2369.4,3.6041]
[1728005811710,0.42198,2369.9,2369.4,0.3963]
[1728005811901,0.4078,2370.1,2369.4,0.3963]
[1728005812112,0.42196,2370.0,2369.4,0.3963]
[1728005812304,0.4078,2370.1,2369.4,0.3963]
[1728005812799,0.82975,2370.1,2369.4,0.3963]
[1728005813414,0.42196,2370.0,2369.4,0.3963]
[1728005813615,0.4078,2370.1,2369.3,0.4277]
[1728005813917,0.42201,2369.8,2369.3,0.4277]
[1728005814301,0.4042,2369.7,2369.3,0.4277]
[1728005814711,0.82622,2369.7,2369.3,0.4277]
[1728005815209,0.4042,2369.7,2369.1,3.2078]
[1728005815417,0.42204,2369.6,2368.8,3.5951]
[1728005815708,0.82622,2369.7,2368.8,4.01727]
[1728005815908,0.4042,2369.7,2369.1,3.2078]
[1728005816111,0.428,2369.9,2369.2,0.42209]
[1728005816311,0.428,2369.9,2369.3,0.4148]
[1728005816703,0.428,2369.9,2369.4,0.3873]
[1728005817419,0.428,2369.9,2369.3,0.4148]
[1728005817614,0.42202,2369.7,2369.1,3.2078]
[1728005817806,0.4191,2369.6,2369.1,3.2078]
[1728005818918,0.428,2369.9,2369.2,0.411]
[1728005818919,0.84998,2369.9,2369.2,0.411]
[1728005819114,0.428,2369.9,2369.2,0.411]
[1728005819419,3.6112,2370.0,2369.4,3.2078]
[1728005819835,0.42199,2369.9,2369.4,3.2078]
[1728005820037,3.6112,2370.0,2369.4,3.2078]
[1728005820224,0.4152,2369.8,2369.3,0.3959]
[1728005820834,0.42202,2369.7,2369.3,0.3959]
[1728005821234,0.4152,2369.8,2369.3,0.3959]
[1728005821537,0.42201,2369.7,2369.3,0.3959]
[1728005821729,0.8372,2369.8,2369.3,0.3959]
[1728005821928,0.4152,2369.8,2369.3,0.3959]
[1728005822833,0.83719,2369.8,2369.3,0.3959]
[1728005823038,0.4152,2369.8,2369.3,0.3959]
[1728005823235,0.54728747,2369.8,2369.3,0.3959]
[1728005823426,0.96927747,2369.8,2369.3,0.3959]
[1728005824328,0.42206,2369.5,2369.2,0.411]
[1728005824529,0.42208,2369.3,2368.7,3.6288]
[1728005824738,0.42208,2369.3,2368.8,0.392]
[1728005825537,3.7221,2369.2,2368.8,0.392]
[1728005826442,3.3,2369.2,2368.8,0.392]
[1728005826839,3.72211,2369.2,2368.8,0.392]
[1728005827040,0.20803591,2369.1,2368.8,0.392]
[1728005827541,0.13035469,2369.7,2369.0,3.2078]
[1728005827849,3.2078,2369.9,2369.3,3.2078]
[1728005828144,3.2078,2369.9,2369.4,0.8004]
[1728005828841,3.62979,2369.9,2369.4,0.8004]
[1728005829039,3.2078,2369.9,2369.4,0.8004]
[1728005830942,4.4565,2370.7,2369.7,0.42201]
[1728005830943,3.84134,2370.7,2369.7,0.42201]
[1728005831140,3.84134,2370.7,2369.5,8.27]
[1728005831141,0.06762363,2370.6,2370.0,0.42195]
[1728005831343,3.013,2370.7,2370.2,3.2078]
[1728005832439,3.43484,2370.7,2370.2,3.2078]
[1728005832849,3.013,2370.7,2370.2,3.2078]
[1728005833747,3.2078,2370.9,2370.2,3.2078]
[1728005833938,10.558,2371.2,2370.5,3.2078]
[1728005834439,0.411,2371.5,2370.5,3.2078]
[1728005834645,0.20765511,2371.6,2370.8,3.2078]
[1728005834837,6.64145,2371.8,2370.9,0.8091]
[1728005835145,0.42168,2371.6,2370.9,0.8091]
[1728005835340,6.84742309,2371.8,2370.9,0.8091]
[1728005835646,6.84742309,2371.8,2371.1,3.2078]
[1728005835647,3.2078,2371.8,2371.1,3.2078]
[1728005835847,3.2078,2371.9,2371.1,3.62956]
[1728005836037,52.1424,2372.3,2371.4,3.2078]
[1728005836251,11.3424,2372.3,2371.5,0.3989]
[1728005836547,10.556,2372.3,2371.7,3.2078]
[1728005837447,3.2078,2372.1,2371.5,0.3989]
[1728005837647,0.42163,2371.9,2371.3,3.2078]
[1728005837848,0.42162,2371.9,2371.3,3.2078]
[1728005838047,0.7889,2372.0,2371.3,3.2078]
[1728005838252,0.42166,2371.7,2371.3,3.2078]
[1728005838447,0.7889,2372.0,2371.3,3.2078]
[1728005838448,0.42163,2371.9,2371.3,3.2078]
[1728005838642,0.7889,2372.0,2371.3,3.2078]
[1728005838844,0.42165,2371.8,2371.3,3.2078]
[1728005839145,0.7889,2372.0,2371.3,3.2078]
[1728005839345,0.42163,2371.9,2371.3,3.2078]
[1728005839748,0.42162,2371.9,2371.4,0.4112]
[1728005839954,0.7889,2372.0,2371.4,0.4112]
[1728005840153,0.42165,2371.8,2371.4,0.4112]
[1728005840854,1.1891,2372.0,2371.4,0.4112]
[1728005841047,0.42165,2371.8,2371.4,0.4112]
[1728005841249,0.42163,2371.9,2371.4,0.4112]
[1728005841653,1.1891,2372.0,2371.4,0.4112]
[1728005841949,0.42164,2371.9,2371.4,0.4112]
[1728005842551,1.74557618,2372.0,2371.4,0.4112]
[1728005842757,0.3954,2372.0,2371.4,0.4112]
[1728005842956,10.556,2372.3,2371.6,3.62947]
[1728005843145,10.556,2372.3,2371.7,0.42165]
[1728005843354,10.556,2372.3,2371.9,3.2078]
[1728005843552,10.556,2372.3,2372.0,0.386]
[1728005843854,4.04363,2373.0,2372.0,5.0232]
[1728005844057,4.04363,2373.0,2372.0,0.8072]
[1728005844058,0.27813018,2372.9,2372.0,0.8072]
[1728005844261,0.21058228,2372.9,2372.0,0.8072]
[1728005844557,4.04363,2373.0,2372.0,1.2288]
[1728005844558,3.62923,2373.0,2372.0,1.2288]
[1728005844951,3.62923,2373.0,2372.2,3.2078]
[1728005846259,0.4215,2372.6,2372.2,3.2078]
[1728005846456,3.41534486,2373.0,2371.9,3.2078]
[1728005846457,4.05,2372.5,2371.9,3.2078]
[1728005846663,4.05,2372.5,2371.6,3.2078]
[1728005846664,3.6196,2372.4,2371.6,3.2078]
[1728005846853,0.4216,2372.0,2371.6,3.2078]
[1728005847051,0.42155,2372.3,2371.6,3.2078]
[1728005847254,4.0305,2372.4,2371.6,3.2078]
[1728005847846,4.45204,2372.4,2371.6,3.2078]
[1728005848249,7.0335,2372.4,2371.6,3.2078]
[1728005848449,7.0335,2372.4,2371.3,3.6173]
[1728005848450,3.2078,2372.0,2371.3,3.6173]
[1728005848652,0.42169,2371.6,2370.9,3.2078]
[1728005848856,41.00583606,2371.8,2370.9,3.2078]
[1728005849154,0.415,2371.8,2371.2,3.2078]
[1728005849364,4.04436,2372.3,2371.3,0.42172]
[1728005849655,3.6228,2372.3,2371.5,3.2078]
[1728005849848,3.6228,2372.3,2371.6,0.4076]
[1728005850155,4.04436,2372.3,2371.6,0.4076]
[1728005850657,0.4216,2372.1,2371.6,0.4076]
[1728005850851,41.22158,2372.2,2371.6,0.4076]
[1728005851559,0.42158,2372.2,2371.6,0.4076]
[1728005852158,0.4216,2372.1,2371.6,0.4076]
[1728005852353,44.4228,2372.3,2371.6,0.4076]
[1728005852559,0.42157,2372.2,2371.6,0.4076]
[1728005854865,3.6228,2372.3,2371.6,0.4076]
[1728005855361,3.63197486,2373.0,2372.1,3.62938]
[1728005855562,3.42443,2373.0,2372.2,0.3892]
[1728005855757,0.42145,2372.9,2372.2,0.7873]
[1728005856258,3.003,2373.0,2372.2,0.7873]
[1728005856463,0.42147,2372.8,2372.2,0.7873]
[1728005856656,3.003,2373.0,2372.2,0.7873]
[1728005856859,0.42146,2372.9,2372.2,0.7873]
[1728005857057,0.42148,2372.7,2372.2,0.7873]
[1728005857266,0.42148,2372.7,2372.2,0.3892]
[1728005857760,0.42146,2372.8,2372.2,0.3892]
[1728005858763,3.21002706,2373.0,2372.2,0.3892]
[1728005858966,0.42145,2372.9,2372.2,0.3892]
[1728005859163,1.201,2373.3,2372.4,3.2078]
[1728005859766,0.42143,2373.0,2372.4,3.2078]
[1728005860160,0.42143,2373.0,2372.7,3.2078]
[1728005860360,0.20725049,2373.0,2372.2,0.3892]
[1728005860665,0.42155,2372.4,2371.8,3.2078]
[1728005860877,1.22995,2372.3,2371.8,3.2078]
[1728005861073,0.8084,2372.3,2371.8,3.2078]
[1728005861363,3.2078,2372.1,2371.5,4.0017]
[1728005861569,0.8084,2372.3,2371.8,3.2078]
[1728005861766,4.05,2372.8,2371.8,3.2078]
[1728005861969,0.8006,2372.8,2372.1,3.2078]
[1728005862165,0.8006,2372.8,2372.2,0.8141]
[1728005862372,3.2078,2373.3,2372.4,3.2078]
[1728005862867,1.2227,2373.4,2372.4,3.2078]
[1728005863170,0.8043,2373.4,2372.7,3.62928]
[1728005863369,0.8043,2373.4,2372.8,0.8033]
[1728005863770,0.42142,2373.1,2372.7,3.2078]
[1728005864368,0.42144,2373.0,2372.3,4.0111]
[1728005864570,0.42144,2372.9,2372.3,4.0111]
[1728005864968,0.4214,2373.2,2372.3,4.43265]
[1728005865169,0.4214,2373.2,2372.3,4.0111]
[1728005865373,0.4214,2373.2,2372.3,4.43265]
[1728005865577,0.42143,2373.0,2372.3,4.0111]
[1728005865972,3.2078,2373.3,2372.3,4.0111]
[1728005866179,0.42141,2373.1,2372.3,4.0111]
[1728005866575,3.2078,2373.3,2372.3,4.0111]
[1728005866774,0.4214,2373.2,2372.3,4.43264]
[1728005866979,0.4214,2373.2,2372.6,3.2078]
[1728005867174,3.2078,2373.3,2372.6,3.2078]
[1728005867471,0.42139,2373.2,2372.6,3.2078]
[1728005867673,3.2078,2373.3,2372.6,3.2078]
[1728005867975,0.42142,2373.1,2372.6,3.2078]
[1728005869278,0.4214,2373.2,2372.6,3.2078]
[1728005869477,0.4214,2373.2,2372.3,1.22485]
[1728005869478,3.2078,2373.3,2372.3,4.0111]
[1728005869679,0.83742,2373.1,2372.3,4.0111]
[1728005869879,0.42142,2373.0,2372.3,4.0111]
[1728005870177,0.416,2373.1,2372.3,4.0111]
[1728005870384,0.82865,2372.9,2372.3,4.0111]
[1728005871175,0.4072,2372.9,2372.3,4.0111]
[1728005871376,0.4072,2372.9,2372.0,3.2078]
[1728005871579,0.42149,2372.7,2372.0,3.2078]
[1728005872785,0.42149,2372.7,2372.3,3.2078]
[1728005872971,0.4236,2372.8,2372.3,3.2078]
[1728005873177,0.42148,2372.7,2372.3,3.2078]
[1728005873379,0.84507,2372.8,2372.3,3.2078]
[1728005874081,0.4236,2372.8,2372.3,3.2078]
[1728005874283,0.4072,2372.9,2372.3,3.2078]
[1728005874478,0.4072,2372.9,2371.6,1.1873]
[1728005874479,0.4072,2372.9,2372.4,0.4016]
[1728005875188,0.4072,2372.9,2372.4,0.821]
[1728005876288,0.4215,2372.6,2372.0,3.2078]
[1728005876588,0.42153,2372.5,2372.0,3.2078]
[1728005876797,3.2078,2372.7,2372.0,3.2078]
[1728005876984,3.2078,2372.7,2371.7,0.821]
[1728005876985,0.42154,2372.4,2371.7,4.0288]
[1728005878086,4.56,2372.5,2371.7,0.821]
[1728005878286,1.58962465,2372.9,2371.7,4.45045]
[1728005878287,0.8133,2372.3,2371.7,4.45045]
[1728005878490,3.2078,2372.4,2371.7,4.45045]
[1728005878887,3.2078,2372.4,2371.8,0.42163]
[1728005879090,3.2078,2372.4,2371.8,0.84923]
[1728005880589,3.2078,2372.4,2371.8,0.4276]
[1728005880794,3.2078,2372.4,2371.7,4.0288]
[1728005880990,0.42157,2372.2,2371.7,0.821]
[1728005881495,0.42156,2372.3,2371.7,0.821]
[1728005881792,3.2078,2372.4,2372.0,3.2078]
[1728005882999,3.2078,2372.9,2372.3,3.2078]
[1728005883296,0.4215,2372.6,2372.0,3.2078]
[1728005883482,0.42149,2372.7,2372.0,3.2078]
[1728005883686,0.42147,2372.8,2372.0,3.2078]
[1728005883887,0.42147,2372.8,2371.9,0.84892]
[1728005883888,0.63690506,2373.0,2372.3,3.2078]
[1728005884093,6.29278944,2373.1,2372.4,0.8465]
[1728005884283,5.46948944,2373.2,2372.6,3.2078]
[1728005884485,18.3044,2373.5,2372.6,3.2078]
[1728005884486,0.42138,2373.3,2372.6,3.2078]
[1728005884684,0.3882,2373.4,2372.4,0.8465]
[1728005884685,0.42144,2372.9,2372.4,0.8465]